[Event "45th FIDE Olympiad 2024"]
[Site "Budapest"]
[Date "2024.09.14"]
[Round "4.79"]
[White "Kasongo Kazadi Olivier"]
[Black "Monther, Alfardan"]
[Result "0-1"]
[ECO "D02"]
[WhiteElo "1794"]
[BlackElo "1834"]
[PlyCount "72"]
[EventDate "2024.09.05"]
[EventType "team-tourn"]
[EventCountry "HUN"]
[WhiteTeam "Democratic Republic of the Congo"]
[BlackTeam "Bahrain"]
[BlackTeamCountry "BRN"]
[TimeControl "40/5400+30:1800+30"]

1. d4 d5 2. Bf4 Nf6 3. e3 e6 4. Nf3 Bd6 5. Bg3 c5 6. c3 O-O 7. Bd3 Nc6 8. Nbd2 c4 9. Bc2 b5 10. a3 Qc7 11. Bh4 Be7 12. Qb1 h6 13. h3 Ne8 14. g4 Bxh4 15. Nxh4 e5 16. g5 hxg5 17. Nhf3 e4 18. Nxg5 f6 19. Ngxe4 dxe4 20. Bxe4 f5 21. Bf3 Nf6 22. d5 Ne5 23. d6 Nxf3+ 24. Nxf3 Qc6 25. Ke2 Qxd6 26. Nd4 Qe5 27. Nc6 Qd6 28. Nd4 Ne4 29. Qg1 f4 30. Rd1 fxe3 31. Nf5 Qf6 32. Nxe3 Qf3+ 33. Ke1 Nxf2 34. Qg5 Qxh1+ 35. Ke2 Qf3+ 36. Ke1 Nxd1 {0-} 0-1

[Event "45th FIDE Olympiad 2024"]
[Site "Budapest"]
[Date "2024.09.14"]
[Round "4.80"]
[White "Kojima, Shinya"]
[Black "Antal, Gergely"]
[Result "0-1"]
[ECO "D79"]
[WhiteElo "2299"]
[BlackElo "2544"]
[Annotator "ChessBase"]
[PlyCount "76"]
[EventDate "2024.09.05"]
[EventType "team-tourn"]
[EventCountry "HUN"]
[SourceTitle "playchess.com"]
[Source "ChessBase"]
[SourceQuality "1"]
[WhiteTeam "Japan"]
[BlackTeam "Hungary B"]
[WhiteTeamCountry "JPN"]
[TimeControl "40/5400+30:1800+30"]

1. d4 Nf6 2. c4 g6 3. Nf3 Bg7 4. g3 c6 5. Bg2 d5 6. cxd5 cxd5 7. Nc3 O-O 8. Ne5 Nc6 9. O-O Bf5 10. Nxc6 bxc6 11. Bf4 Nh5 12. Be3 c5 13. Bxd5 cxd4 14. Bxd4 Bxd4 15. Qxd4 e6 16. g4 Bxg4 17. Qxg4 Nf6 18. Qd4 Nxd5 19. Nxd5 exd5 20. Rfd1 Qg5+ 21. Kf1 Qh5 22. Qxd5 Qxh2 23. e3 Rae8 24. Ke2 Re5 25. Qh1 Qf4 26. Rac1 Qa4 27. Rd2 Qxa2 28. Qb7 Qe6 29. Rc7 a5 30. Rdd7 Rf5 31. Re7 Qf6 32. f3 Rh5 33. b3 Qb2+ 34. Kd3 Qb1+ 35. Kc3 Qc1+ 36. Kd3 Qd1+ 37. Kc3 Rh2 38. Rxf7 Rc2# 0-1

[Event "45th FIDE Olympiad 2024"]
[Site "Budapest"]
[Date "2024.09.14"]
[Round "4.81"]
[White "Zhakshylykov, Erzhan"]
[Black "Fedoseev, Vladimir"]
[Result "0-1"]
[ECO "D32"]
[WhiteElo "2327"]
[BlackElo "2692"]
[Annotator "TA"]
[PlyCount "52"]
[EventDate "2024.09.05"]
[EventType "team-tourn"]
[EventCountry "HUN"]
[SourceTitle "playchess.com"]
[Source "ChessBase"]
[SourceQuality "1"]
[WhiteTeam "Kyrgyzstan"]
[BlackTeam "Slovenia"]
[WhiteTeamCountry "KGZ"]
[BlackTeamCountry "SLO"]
[TimeControl "40/5400+30:1800+30"]

{[%evp 20,52,0,-8,0,0,0,6,0,0,0,-14,0,0,0,-33,-28,-34,-36,-60,-67,-60,-58,-67,-75,-319,-323,-314,-314,-591,-590,-640,-645,-29987,-1915]} 1. d4 d5 2. c4 e6 3. Nc3 Bb4 4. cxd5 exd5 5. Nf3 c5 6. Bd2 Nf6 7. dxc5 Bxc5 8. e3 Nc6 9. Be2 O-O 10. O-O a6 11. Rc1 Qd6 12. Qc2 {[%cal Oc3d5]} Ba7 13. Rfd1 Be6 {The position is equal.} 14. Be1 Rac8 15. Qa4 Rfd8 16. Qh4 h6 17. Nd4 Nxd4 18. exd4 Re8 19. Bd3 Bg4 20. f3 Bxd4+ 21. Kh1 Be3 $1 $36 {[%mdl 2048] White is under strong pressure. Black is much more active.} 22. fxg4 $2 {Loses the game.} (22. Bd2 $17 Bxd2 23. Rxd2) 22... Bxc1 $19 23. Rxc1 {[#]} d4 $1 24. Bg3 $2 (24. Rd1 {was the only chance.} dxc3 25. Bxc3 (25. Bh7+ $2 Kxh7 26. Rxd6 c2 $19)) 24... Qb4 25. Rf1 dxc3 26. Rxf6 c2 {Weighted Error Value: White=0.93/Black=0.01 (flawless) .  Loses game:     	White=1     	---        Mistake:       	White=1     	---        Inaccurate:     	White=2     	---        OK:         	White=3     	Black=7      Best:        	White=1     	Black=1      Strong:       	---       	Black=2} (26... cxb2 $142 27. Rf1 Rc1 28. Qh5 Rxf1+ (28... b1=R 29. Qxf7+ Kh8 30. Qxe8+) 29. Bxf1 b1=Q (29... b1=B $2 30. Qd5 $19) 30. Qf5 Qxf5 (30... Qxa2 $2 31. h4 $19) 31. gxf5 Re1 32. Bxe1 Qxe1 33. Kg1 Qe3+ 34. Kh1 Qf2 35. h3 Qxf1+ 36. Kh2 Qxf5 (36... Qf4+ {gets mated.} 37. Kh1 Qf2 38. g4 b5 39. h4 b4 40. h5 Qxa2 41. g5 b3 42. Kg1 Qe2 43. gxh6 b2 44. h7+ Kxh7 45. Kh1 b1=Q#) 37. h4 Qf2 38. h5 f5 (38... Qxa2 {leads to mate.} 39. Kg3 b5 40. Kf4 Qxg2 41. Ke3 b4 42. Kd4 b3 43. Kd3 b2 44. Kc4 Qe4+ 45. Kc5 b1=Q 46. Kd6 Qe6+ 47. Kc7 Qbb6#) 39. Kh3 b5 (39... Qxa2 40. Kg3 Qe2 41. Kf4 Qe4+ 42. Kg3 Qe3+ 43. Kh2 f4 44. Kh1 Qg3 45. Kg1 f3 46. Kf1 Qxg2+ 47. Ke1 Qe2#) (39... Qe3+ 40. Kh2 f4 41. Kh1 Qf2 42. a4 a5 43. Kh2 Qe1 44. g3 Qf2+ 45. Kh1 f3 46. g4 Qg2#) 40. a3 Qf4 (40... Qe3+ 41. Kh2 f4 42. Kh1 Qg3 43. a4 bxa4 44. Kg1 f3 45. Kf1 Qxg2+ 46. Ke1 Qe2#) 41. a4 bxa4 42. g4 Qxg4+ (42... fxg4+ 43. Kg2 a3 44. Kh1 Qd2 45. Kg1 a2 46. Kh1 a1=Q#) 43. Kh2 f4 (43... Qxh5+ 44. Kg2 Qe2+ 45. Kg3 g5 46. Kh3 g4+ 47. Kg3 Qd2 48. Kh4 Qh2#) 44. Kh1 f3 45. Kh2 Qg2#) 0-1

[Event "45th FIDE Olympiad 2024"]
[Site "Budapest"]
[Date "2024.09.14"]
[Round "4.81"]
[White "Enemchukwu Chinedu Benjamin"]
[Black "Hamperl, Fred"]
[Result "1-0"]
[ECO "B21"]
[WhiteElo "2001"]
[BlackElo "1977"]
[PlyCount "57"]
[EventDate "2024.09.05"]
[EventType "team-tourn"]
[EventCountry "HUN"]
[WhiteTeam "Saint Vincent and the Grenadines"]
[BlackTeam "Guernsey"]
[BlackTeamCountry "GCI"]
[TimeControl "40/5400+30:1800+30"]

1. e4 c5 2. d4 cxd4 3. c3 dxc3 4. Nxc3 Nc6 5. Nf3 e6 6. Bf4 Bb4 7. Bd3 d6 8. O-O Bxc3 9. bxc3 e5 10. Be3 Nf6 11. h3 h6 12. Nh2 Be6 13. c4 b6 14. f4 exf4 15. Bxf4 Ne5 16. Qe2 Qc7 17. Rac1 Rc8 18. c5 bxc5 19. Bb5+ Bd7 20. Nf3 O-O 21. Ba6 Rcd8 22. Nxe5 dxe5 23. Bxh6 Qc6 24. Bg5 Nxe4 25. Bxd8 Ng3 26. Qxe5 Nxf1 27. Be7 Re8 28. Bxf1 Be6 29. Qxc5 1-0

[Event "45th FIDE Olympiad 2024"]
[Site "Budapest"]
[Date "2024.09.14"]
[Round "4.82"]
[White "Demchenko, Anton"]
[Black "Khoroshev, Nikita"]
[Result "1-0"]
[ECO "C00"]
[WhiteElo "2597"]
[BlackElo "2355"]
[Annotator "TA"]
[PlyCount "111"]
[EventDate "2024.09.05"]
[EventType "team-tourn"]
[EventCountry "HUN"]
[SourceTitle "playchess.com"]
[Source "ChessBase"]
[SourceQuality "1"]
[WhiteTeam "Slovenia"]
[BlackTeam "Kyrgyzstan"]
[WhiteTeamCountry "SLO"]
[BlackTeamCountry "KGZ"]
[TimeControl "40/5400+30:1800+30"]

{[%evp 41,111,0,0,0,0,0,0,-23,-30,-8,0,-14,-16,-6,0,0,0,0,0,0,39,11,27,-30,-29,-18,34,-33,-27,-24,0,-27,0,0,-5,-55,-56,-53,-49,-132,0,0,0,0,22,12,18,24,18,10,17,10,14,12,58,5,516,477,575,591,764,860,815,780,723,725,770,595,905,865,29980,29978]} 1. e4 e6 2. Nc3 d5 3. Nf3 Nc6 4. Bb5 Nf6 5. e5 Ne4 6. Qe2 {C00: French: Unusual White 2nd moves.} Nxc3 7. dxc3 Bd7 8. O-O $146 ({Predecessor:} 8. Bg5 Be7 9. h4 h6 10. Bf4 Na5 11. b4 Nc6 12. Bd3 a5 13. b5 Na7 14. Rh3 {1-0 Guseinov,G (2456)-Rajlich,I (2345) Budapest FS06 GM 2001 (5)}) 8... h6 9. Rd1 Ne7 10. Bd3 c5 11. c4 Qc7 12. cxd5 exd5 13. c4 O-O-O 14. b4 Be6 15. Bb2 Nc6 16. cxd5 Rxd5 17. b5 Na5 18. Rdc1 Be7 19. Qc2 Rhd8 20. Be4 R5d7 21. Bf5 Qb6 22. Bxe6 Qxe6 23. h3 (23. Qa4 $5 b6 $8 24. Re1 $11) 23... Kb8 24. Bc3 (24. Qa4 $5 b6 $8 25. Re1 $11) 24... Nc4 25. a4 Nb6 26. Ba5 Rd3 27. Qe2 c4 28. Rc2 Qd5 29. Re1 Rc8 30. e6 fxe6 (30... Nxa4 $2 31. exf7 Bf8 32. Qe8 $18) 31. Ne5 Bc5 (31... Rc7 $5) 32. Bxb6 ({Better is} 32. Ra2) 32... axb6 $11 33. Nxc4 Rd4 (33... Rf8 $11 34. Ne3 (34. Qxe6 $2 Qxe6 35. Rxe6 Bxf2+ 36. Rxf2 Rd1+ 37. Kh2 Rxf2 $19) 34... Bxe3 35. fxe3 Ka7) 34. Rec1 (34. Qxe6 $14 Qxe6 35. Rxe6) 34... Rf8 $15 35. Ne3 Qg5 36. Rc4 (36. a5 $5 Rdf4 37. Qd3 Rxf2 38. Rxc5 (38. Rxf2 $2 Qxe3 39. Qxe3 Bxe3 $19) 38... bxc5 39. Qd6+ Ka8 40. a6 Qxe3 41. axb7+ Kxb7 42. Qc6+ Kb8 43. Qd6+ Kb7 44. Qc6+ Ka7 45. Qa6+ Kb8 46. Qb6+ Ka8 47. Qc6+ Kb8 48. Qb6+ Ka8 49. Qc6+ Ka7 (49... Kb8 50. Qb6+ $11) 50. Qa6+ Kb8 51. Qd6+ (51. Qb6+ Ka8 $11) 51... Ka8 (51... Kb7 52. Qc6+ $11) 52. Qa6+ Kb8 $11) 36... e5 (36... Rdf4 {with more complications.} 37. Nd1 Ka7 38. R4c2 R8f5) 37. Rf1 (37. R1c2 $5) 37... Rdf4 38. Rxf4 (38. Qd3 $11 Rxc4 (38... Bxe3 39. Rxf4 Qxf4 40. Qxe3 $11) 39. Nxc4) 38... exf4 $15 39. Ng4 f3 $1 40. gxf3 (40. Qe5+ $1 $15 Qxe5 41. Nxe5 fxg2 42. Kxg2) 40... h5 ({Black should try} 40... Ka7 $1 $17 {Threatens to win with ...h5.} 41. Kh1 h5) 41. Qe5+ $11 Qxe5 42. Nxe5 Rf4 43. Rc1 Bd4 44. Nd7+ Ka7 45. Rd1 Bb2 46. Rd2 Ba1 47. Kg2 (47. Ra2 $5 Bc3 $8 48. Ra3 $15) 47... h4 (47... Rxa4 $11 48. f4 Bc3) 48. Rd3 ({Much weaker is} 48. Rd6 Rxa4 49. Nxb6 (49. Rxb6 $2 {loses.} Rd4 $19) 49... Ra5 $11) (48. Ra2 $14 Bc3 49. Rc2) 48... Bb2 $2 {[%mdl 8192] [#]} (48... Rxa4 $11 49. Nf8 Bf6) 49. Rb3 $1 $18 Bd4 {[#]} 50. Rb4 $1 g5 51. Rc4 Ka8 52. Kf1 Ka7 53. Ke2 Ka8 54. Kd3 Rxf3+ 55. Kxd4 Rf4+ 56. Ke3 1-0

[Event "45th FIDE Olympiad 2024"]
[Site "Budapest"]
[Date "2024.09.14"]
[Round "4.82"]
[White "Rowe, Peter"]
[Black "Cottle, Brian S"]
[Result "0-1"]
[ECO "D02"]
[WhiteElo "1973"]
[BlackElo "1804"]
[PlyCount "158"]
[EventDate "2024.09.05"]
[EventType "team-tourn"]
[EventCountry "HUN"]
[WhiteTeam "Guernsey"]
[BlackTeam "Saint Vincent and the Grenadines"]
[WhiteTeamCountry "GCI"]
[TimeControl "40/5400+30:1800+30"]

1. d4 d5 2. Nf3 Nf6 3. Bf4 e6 4. e3 Bb4+ 5. c3 Bd6 6. Bg3 a6 7. Bd3 Nc6 8. Nbd2 Bd7 9. Ne5 Qe7 10. Qe2 h6 11. h4 h5 12. Ndf3 Ng4 13. Bf4 Bxe5 14. Nxe5 Ngxe5 15. dxe5 O-O-O 16. Bg3 Rdg8 17. O-O-O Na7 18. Kb1 Qc5 19. e4 dxe4 20. Bxe4 Bc6 21. f4 Nb5 22. Bxc6 Qxc6 23. c4 Na7 24. Bf2 b6 25. c5 b5 26. g3 g6 27. Rhe1 Rd8 28. a3 Rxd1+ 29. Rxd1 Rd8 30. Rxd8+ Kxd8 31. Qd2+ Kc8 32. Qa5 Kb7 33. Qd2 Qd5 34. Qc2 Nc6 35. Qc3 Qe4+ 36. Ka2 Ne7 37. Ka1 Nf5 38. b4 Qh1+ 39. Kb2 Kc6 40. Kb3 Qd5+ 41. Kb2 Qg2 42. Qc2 Qd5 43. Qc3 Nh6 44. Qc2 Qg2 45. Kc3 Ng4 46. Bd4 Qxg3+ 47. Qd3 Qxd3+ 48. Kxd3 Kd5 49. Bg1 Nh6 50. Be3 Nf5 51. Bf2 c6 52. Be1 Nd4 53. Bf2 Nf3 54. Bg3 Nd4 55. Bf2 Nf5 56. Be1 Ne7 57. Bc3 Ng8 58. Bd2 f6 59. Bc3 fxe5 60. Bxe5 Nh6 61. Bf6 Nf7 62. Bg7 e5 63. fxe5 Nxe5+ 64. Ke3 Nc4+ 65. Kf4 Ke6 66. Kg5 Kf7 67. Bc3 Nxa3 68. Kf4 Nc4 69. Kg5 Ne3 70. Bb2 Nd5 71. Ba3 Ne7 72. Bb2 Nf5 73. Bc3 Ng3 74. Be1 Nf1 75. Bc3 Ne3 76. Be1 Nd5 77. Bd2 Nf6 78. Be1 Nd7 79. Bf2 Ne5 {0-} 0-1

[Event "45th FIDE Olympiad 2024"]
[Site "Budapest"]
[Date "2024.09.14"]
[Round "4.83"]
[White "Orozbaev, Eldiyar"]
[Black "Subelj, Jan"]
[Result "0-1"]
[ECO "C54"]
[WhiteElo "2376"]
[BlackElo "2498"]
[Annotator "ChessBase"]
[PlyCount "58"]
[EventDate "2024.09.05"]
[EventType "team-tourn"]
[EventCountry "HUN"]
[SourceTitle "playchess.com"]
[Source "ChessBase"]
[SourceQuality "1"]
[WhiteTeam "Kyrgyzstan"]
[BlackTeam "Slovenia"]
[WhiteTeamCountry "KGZ"]
[BlackTeamCountry "SLO"]
[TimeControl "40/5400+30:1800+30"]

1. e4 e5 2. Nf3 Nc6 3. Bc4 Bc5 4. c3 Nf6 5. d4 exd4 6. b4 Bb6 7. e5 d5 8. exf6 dxc4 9. Qe2+ Be6 10. b5 Nb4 11. cxb4 Qxf6 12. O-O O-O 13. a4 a5 14. bxa6 bxa6 15. Na3 d3 16. Qd2 Qxa1 17. Bb2 Qa2 18. Qc3 f6 19. Nd2 c5 20. Naxc4 cxb4 21. Qxb4 Bxc4 22. Nxc4 Ba7 23. Ra1 d2 24. Nxd2 Qd5 25. Ba3 Rab8 26. Qf4 Rfd8 27. Nf1 Qd4 28. Qxd4 Rxd4 29. a5 Ra4 0-1

[Event "45th FIDE Olympiad 2024"]
[Site "Budapest"]
[Date "2024.09.14"]
[Round "4.83"]
[White "Schneider, James U"]
[Black "Brookfield, Toby"]
[Result "0-1"]
[ECO "B76"]
[WhiteElo "1486"]
[BlackElo "1872"]
[PlyCount "38"]
[EventDate "2024.09.05"]
[EventType "team-tourn"]
[EventCountry "HUN"]
[WhiteTeam "Saint Vincent and the Grenadines"]
[BlackTeam "Guernsey"]
[BlackTeamCountry "GCI"]
[TimeControl "40/5400+30:1800+30"]

1. e4 c5 2. Nc3 d6 3. Nf3 Nf6 4. Be2 Nc6 5. d4 cxd4 6. Nxd4 g6 7. Be3 Bg7 8. f3 O-O 9. Qd2 d5 10. Nxc6 bxc6 11. Rd1 Be6 12. O-O Qc7 13. a3 dxe4 14. fxe4 Ng4 15. Bf4 Qb6+ 16. Kh1 Nf2+ 17. Kg1 Nh3+ 18. Kh1 Qg1+ 19. Rxg1 Nf2# {0-} 0-1

[Event "45th FIDE Olympiad 2024"]
[Site "Budapest"]
[Date "2024.09.14"]
[Round "4.84"]
[White "Lavrencic, Matic"]
[Black "Abdyzhapar, Asylbek"]
[Result "0-1"]
[ECO "B12"]
[WhiteElo "2360"]
[BlackElo "2357"]
[Annotator "ChessBase"]
[PlyCount "100"]
[EventDate "2024.09.05"]
[EventType "team-tourn"]
[EventCountry "HUN"]
[SourceTitle "playchess.com"]
[Source "ChessBase"]
[SourceQuality "1"]
[WhiteTeam "Slovenia"]
[BlackTeam "Kyrgyzstan"]
[WhiteTeamCountry "SLO"]
[BlackTeamCountry "KGZ"]
[TimeControl "40/5400+30:1800+30"]

1. e4 c6 2. d4 d5 3. e5 Bf5 4. Nd2 e6 5. Nb3 Nd7 6. Nf3 h6 7. Be2 Ne7 8. O-O Bg6 9. c3 Nf5 10. Bd3 Be7 11. g4 Nh4 12. Nxh4 Bxd3 13. Qxd3 Bxh4 14. f4 Qe7 15. Qh3 g5 16. Nd2 h5 17. f5 exf5 18. gxf5 g4 19. Qd3 O-O-O 20. f6 Qe6 21. Qf5 Nf8 22. Kg2 Qxf5 23. Rxf5 Ne6 24. Nb3 Rdg8 25. Bd2 Bg5 26. Rg1 h4 27. Kf1 Bxd2 28. Nxd2 Kd7 29. Ke2 b6 30. Nf1 c5 31. dxc5 bxc5 32. Ne3 g3 33. hxg3 hxg3 34. Rg2 d4 35. Nf1 Rb8 36. Kd3 Rh4 37. Rxg3 Rxb2 38. cxd4 Rxd4+ 39. Kc3 Rxa2 40. Rg8 Rda4 41. Rb8 R4a3+ 42. Kc4 Rc2+ 43. Kd5 Rd3+ 44. Ke4 c4 45. Ne3 Re2 46. Rf3 Ng5+ 47. Kf4 Nxf3 48. Nxc4 Nd4 49. Rb7+ Kc6 50. Na5+ Kc5 0-1

[Event "45th FIDE Olympiad 2024"]
[Site "Budapest"]
[Date "2024.09.14"]
[Round "4.85"]
[White "Brkic, Ante"]
[Black "Saraci, Nderim"]
[Result "1-0"]
[ECO "C88"]
[WhiteElo "2642"]
[BlackElo "2446"]
[Annotator "TA"]
[PlyCount "71"]
[EventDate "2024.09.05"]
[EventType "team-tourn"]
[EventCountry "HUN"]
[SourceTitle "playchess.com"]
[Source "ChessBase"]
[SourceQuality "1"]
[WhiteTeam "Croatia"]
[BlackTeam "Kosovo"]
[WhiteTeamCountry "CRO"]
[BlackTeamCountry "KOS"]
[TimeControl "40/5400+30:1800+30"]

{[%evp 19,71,29,27,32,47,30,56,47,42,36,40,44,52,44,60,60,43,39,32,22,67,41,28,36,43,35,37,69,64,72,139,160,213,205,384,259,262,247,231,240,255,177,180,180,180,179,180,176,193,183,191,160,775,766]} 1. e4 e5 2. Nf3 Nc6 3. Bb5 a6 {[%cal Ba7a6,Ba6b5,Bb5b4][%mdl 32]} 4. Ba4 Nf6 5. d3 b5 6. Bb3 Be7 7. a4 Rb8 8. axb5 axb5 9. O-O O-O 10. Re1 d6 11. c3 b4 12. h3 Nd7 13. d4 {aiming for d5. White is slightly better.} Bf6 14. Be3 Ne7 15. Nbd2 bxc3 16. bxc3 Ng6 17. Nc4 exd4 18. cxd4 Bb7 19. Bc2 {[%cal Bb3c2,Bc2a4,Ba4d7,Bd7e8][%mdl 32]} Re8 20. Na5 Ba8 (20... Bxe4 $2 {perishes.} 21. Bxe4 Rxe4 22. Nc6 $18) 21. Ra3 d5 (21... Bxe4 $2 {is the wrong capture.} 22. Bxe4 Rxe4 23. Nc6 $18) 22. e5 $36 {[%mdl 2048] White has the initiative.} Be7 23. Ra1 c5 24. Ba4 {White is more active.} cxd4 (24... Qc7 $142) 25. Nxd4 $16 {[#] Nac6 would now be deadly.} ({But not} 25. Bxd4 $6 Bb4 $14) 25... Ngxe5 (25... Ndxe5 $16 {was called for.} 26. Bxe8 Qxe8) 26. Bf4 $18 Bb4 $2 (26... Bd6) 27. Bxd7 Bxe1 28. Bxe8 Bxf2+ 29. Kxf2 Qf6 {[#]} 30. Kg3 Rxe8 31. Bxe5 Qxe5+ 32. Kf2 Qe3+ 33. Kf1 Re4 34. Nf3 h6 35. Qc2 d4 $2 (35... Rf4 $16) 36. Nc4 $1 {[%csl LRa8,LRe3] Weighted Error Value: White=0.21 (precise) /Black=0.22 (precise) .  Loses game:     	---       	Black=1      Mistake:       	---       	Black=3      Inaccurate:     	White=3     	Black=2      OK:         	White=10    	Black=11     Best:        	White=2     	Black=1} 1-0

[Event "45th FIDE Olympiad 2024"]
[Site "Budapest"]
[Date "2024.09.14"]
[Round "4.86"]
[White "Ondozi, Murtez"]
[Black "Martinovic, Sasa"]
[Result "0-1"]
[ECO "D26"]
[WhiteElo "2371"]
[BlackElo "2563"]
[Annotator "TA"]
[PlyCount "100"]
[EventDate "2024.09.05"]
[EventType "team-tourn"]
[EventCountry "HUN"]
[SourceTitle "playchess.com"]
[Source "ChessBase"]
[SourceQuality "1"]
[WhiteTeam "Kosovo"]
[BlackTeam "Croatia"]
[WhiteTeamCountry "KOS"]
[BlackTeamCountry "CRO"]
[TimeControl "40/5400+30:1800+30"]

{[%evp 20,100,0,-30,-31,-39,-43,-35,-33,-39,-37,-36,-22,-39,-48,-41,-35,-46,-39,-66,-50,-56,-54,-68,-63,-77,-80,-122,-106,-97,-41,-49,-21,-49,-30,-81,-84,-161,-154,-164,-82,-94,-105,-97,-90,-104,-90,-110,-97,-127,-139,-147,-137,-126,-85,-115,-84,-126,-110,-181,-176,-154,-158,-181,-165,-158,-114,-179,-179,-169,-168,-158,-181,-267,-223,-295,-325,-575,-579,-508,-508,-2781,-2221]} 1. c4 e6 2. d4 Nf6 3. Nf3 d5 4. Nc3 dxc4 5. e3 a6 6. Bxc4 b5 7. Be2 {7.Bb3 is setting a new trend.} Bb7 8. O-O Nbd7 {D26: Queen's Gambit Accepted: 4 e3 e6 5 Bxc5 c5 sidelines.} 9. b3 Bd6 10. Bb2 O-O 11. Nd2 c5 12. Bf3 cxd4 13. exd4 ({But not} 13. Bxb7 dxc3 14. Bxc3 Bxh2+ 15. Kxh2 (15. Kh1 Ra7 $17) 15... Qc7+ 16. Kg1 Qxb7 $17) 13... Qb8 14. Bxb7 $146 ({Predecessor:} 14. h3 Bb4 15. Nde4 Rd8 16. Qe2 Bxc3 17. Nxc3 Bxf3 18. Qxf3 Nb6 19. Rac1 Qd6 20. Ne2 {0-1 Jogstad,M (2291)-Grandelius,N (2642) SWE-ch Stockholm 2017 (4)}) 14... Qxb7 15. Qe2 Rac8 16. Rac1 Rfd8 17. g3 Bb4 18. a3 Bxc3 19. Rxc3 Rxc3 20. Bxc3 Rc8 21. Qd3 Qd5 22. Bb2 h5 23. Qb1 h4 $1 24. Rc1 Rd8 (24... Rxc1+ $17 25. Qxc1 Ne4 26. Nxe4 Qxe4 27. Qc8+ Nf8 28. gxh4 Qb1+ (28... Qxh4 29. b4 $17) 29. Qc1 Qg6+ 30. Kf1 Qd3+ 31. Ke1 Qe4+ (31... Qxb3 32. h5 $17) 32. Qe3 Qh1+ (32... Qxh4 33. d5 $17) 33. Kd2 Qxh2) 25. Qc2 $15 h3 26. Qc6 Qg5 27. f4 (27. Nf3 $11 {remains equal.} Qf5 28. Ne1) 27... Qf5 $17 28. Qc2 (28. Nf3 $17) 28... Qd5 $19 29. Qc6 Qh5 (29... Re8 $1 $19 30. Ba1 Ng4) 30. Qf3 Qf5 31. Qe2 Nb6 32. Rc5 Nbd5 33. Rc6 b4 34. axb4 Nxb4 35. Rc4 a5 36. Ba3 Qd5 37. Qf3 Qb5 38. Qf1 Qb6 $1 39. Nf3 (39. Qe2 $17) 39... Nbd5 40. Qd3 {[#]} Qb7 $1 41. Rc5 Nb4 42. Qe2 Nc6 43. Rb5 (43. Bb2 $17) 43... Qa6 $19 44. Bc5 Na7 45. Bxa7 Qxa7 46. Qd2 {[#]} (46. Qc2 {was necessary.}) 46... Qa8 $1 $19 47. Qd3 g6 48. Qe2 $2 (48. Ne1) 48... Rc8 $19 49. Rc5 Rb8 50. Qc2 (50. Nd2 $142 a4 51. bxa4 Qxa4 52. Nf1) 50... Qxf3 0-1

[Event "45th FIDE Olympiad 2024"]
[Site "Budapest"]
[Date "2024.09.14"]
[Round "4.86"]
[White "Stetsenko, Ilya"]
[Black "Heim, Colin Peter"]
[Result "1-0"]
[ECO "A13"]
[WhiteElo "1903"]
[BlackElo "1751"]
[PlyCount "43"]
[EventDate "2024.09.05"]
[EventType "team-tourn"]
[EventCountry "HUN"]
[WhiteTeam "Aruba"]
[BlackTeam "US Virgin Islands"]
[WhiteTeamCountry "ARN"]
[BlackTeamCountry "ISV"]
[TimeControl "40/5400+30:1800+30"]

1. Nf3 d5 2. e3 Nf6 3. c4 e6 4. b3 c5 5. Bb2 Be7 6. Be2 Nc6 7. cxd5 exd5 8. d4 O-O 9. O-O b6 10. Nc3 cxd4 11. Nxd4 Nxd4 12. Qxd4 Bc5 13. Qd3 Bb7 14. Rfd1 Qd7 15. Bf3 Rad8 16. Ne2 Ne8 17. Nf4 Nc7 18. Qc3 f6 19. b4 Nb5 20. Qb3 Be7 21. Bxd5+ Bxd5 22. Rxd5 1-0

[Event "45th FIDE Olympiad 2024"]
[Site "Budapest"]
[Date "2024.09.14"]
[Round "4.87"]
[White "Livaic, Leon"]
[Black "Uruci, Endrit"]
[Result "1-0"]
[ECO "D46"]
[WhiteElo "2550"]
[BlackElo "2348"]
[Annotator "TA"]
[PlyCount "91"]
[EventDate "2024.09.05"]
[EventType "team-tourn"]
[EventCountry "HUN"]
[SourceTitle "playchess.com"]
[Source "ChessBase"]
[SourceQuality "1"]
[WhiteTeam "Croatia"]
[BlackTeam "Kosovo"]
[WhiteTeamCountry "CRO"]
[BlackTeamCountry "KOS"]
[TimeControl "40/5400+30:1800+30"]

{[%evp 24,91,21,22,190,210,163,133,104,22,17,9,86,68,94,75,78,64,66,52,99,99,141,146,150,119,137,113,119,133,165,159,239,235,315,327,308,218,220,217,212,215,212,220,220,217,191,154,151,130,155,160,173,167,226,228,241,236,261,201,282,282,373,326,611,609,604,591,529,416]} 1. Nf3 Nf6 2. c4 c6 3. Nc3 d5 4. e3 e6 5. b3 Be7 6. Bb2 b6 7. d4 Bb7 8. Bd3 O-O 9. O-O Nbd7 10. Qe2 Rc8 11. Rad1 Qc7 12. e4 dxe4 13. Nxe4 Rfd8 $2 (13... Rfe8 $11) 14. Neg5 $1 $18 Rf8 15. Ne5 {Threatens to win with Qc2.} h6 {White is clearly better.} 16. Ngf3 {White is much more active.} (16. f4 $16) 16... Rfe8 $11 17. Bb1 Nxe5 (17... c5 $11 {remains equal.}) 18. dxe5 $16 (18. Nxe5 Rcd8 $11) 18... Nh7 19. Nd4 {[%cal Bf3d4,Bd4e2,Be2g3,Bg3h5][%mdl 32]} a6 20. Qh5 c5 21. Ne2 Nf8 (21... Rcd8 $14) 22. Ng3 $40 {[%mdl 128] White goes for the king.} Rcd8 23. Rde1 $1 b5 24. Qg4 bxc4 25. Nh5 {[%csl Gh5][%cal Rg4g7]} (25. Qxc4 $6 Bc6 $11) 25... g6 26. bxc4 Qc6 {[%cal Oc6g2]} 27. f3 $1 {[%cal Bf2f3,Bf3f4][%mdl 32]} Kh8 (27... Qb6 $16 {is a better defense.} 28. Bc3 Rd4 29. Bxd4 cxd4) 28. Nf6 $18 Bxf6 29. exf6 Qd6 30. Qh3 Qf4 31. Be5 Qg5 32. f4 Qh5 {Black is weak on the dark squares} 33. Qxh5 gxh5 34. Bc3 Nd7 {Repels Re5} 35. Rd1 Nb6 36. Bd3 Rg8 37. g3 {[%cal Bg2g3,Bg3g4,Bg4g5][%mdl 32]} h4 {[#]} 38. Kf2 Rd7 {[#]} (38... Nc8 $142 39. Be5 (39. gxh4 Rg2+ 40. Ke1 Rxa2 $11) 39... Nd6) 39. Be2 $1 {This pair of bishops is nice.} (39. gxh4 Rg2+ 40. Ke3 Rxh2 $15) 39... Rgd8 40. Rxd7 ({Inferior is} 40. gxh4 Rxd1 41. Rxd1 Rxd1 42. Bxd1 Nxc4 $14) 40... Rxd7 41. Ke3 {Against Be4. Hoping for Rb1.} ({Don't take} 41. gxh4 $6 Be4 $16) 41... Nc8 (41... Bg2 $142 42. Rc1 Bc6) 42. g4 (42. gxh4 Nd6 $11) 42... Nd6 43. Be5 h5 $2 (43... Kg8 44. Rb1 Nc8) 44. Bxd6 {White is clearly winning.} (44. gxh5 Nf5+ 45. Kf2 Be4 $16) 44... Rxd6 45. g5 Rd4 46. Bd3 {Inhibits Re4+.   Weighted Error Value: White=0.15 (very precise) /Black=0.38.  Mistake:       	White=1     	Black=6      Inaccurate:     	---       	Black=4      OK:         	White=15    	Black=12     Strong:       	White=3     	---} 1-0